{"text_format":"2","workbook":"xlsx","n_sheets":3,"sheets":["Munka1","Munka2","Munka3"],"not_rendered":{"charts":0,"images":0,"macros":0,"external_links":0,"defined_names":0,"comments":0,"pivot_tables":0},"unopened":[],"bounds":{"document_bytes":16777216,"sheet_cells":100000,"run_cost":"one","rows_first":2000,"rows_last":500,"rows_between":2000,"halvings":0,"cell_chars":16384,"cell_head_chars":4096},"cells_cut":0,"cells_raw":0,"read":"whole","date_system":"1900"}

{"sheet":"Munka1","index":0,"n_rows":39,"n_cols":10,"rows_kept":39,"cut":false,"hidden":false,"merged":[[17,7,17,8],[32,0,32,1],[32,7,32,8],[33,0,33,1],[4,0,4,1],[5,7,5,8],[5,0,5,1],[18,0,18,1],[21,0,21,1],[26,0,26,1],[30,0,30,1],[31,0,31,1],[0,0,0,9],[38,0,38,1],[38,7,38,8],[1,0,1,9],[34,7,34,8],[35,7,35,8],[36,7,36,8],[37,7,37,8],[34,0,34,1],[35,0,35,1],[36,0,36,1],[37,0,37,1],[33,7,33,8],[4,7,4,9],[12,7,12,8],[16,7,16,8]]}
[" Budapest XII. kerületi Horvát Nemzetiségi Önkormányzat "]
["Vagyonkimutatás 2025.XII.31."]
[]
[{"$nulls":9},"forintban"]
["ESZKÖZÖK",null,"Forgalomképtelen törzsvagyon","Nemzetgazdasági szempontból kiemelt jelentőségű törzsvagyon","Korlátozottan forgalomképes vagyon","Üzleti vagyon","Összesen","FORRÁSOK"]
["A) Nemzeti vagyonba tartozó befektetett eszközök",null,{"$f":"C7+C8+C14+C18","v":0},{"$f":"D7+D8+D14+D18","v":0},165000,0,165000,"G) Saját tőke",null,{"$f":"J9+J10+J11+J12","v":285226}]
[null,"I. Immateriális javak",{"$nulls":4},{"$f":"SUM(C7:F7)","v":0},null,"I. Nemzeti vagyon induláskori értéke",0]
[null,"II. Tárgyi eszközök",{"$f":"C9+C10+C11+C12+C13","v":0},{"$f":"D9+D10+D11+D12+D13","v":0},165000,0,165000,null,"II. Nemzeti vagyon változásai"]
[null,"     1. Ingatlanok és kapcsolódó vagyoni értékű jogok",{"$nulls":4},{"$f":"SUM(C9:F9)","v":0},null,"III. Egyéb eszközök induláskori értéke és változásai",235709]
[null,"     2. Gépek, berendezések, felszerelések, járművek",null,null,165000,null,{"$f":"SUM(C10:F10)","v":165000},null,"IV. Felhalmozott eredmény",50925]
[null,"     3. Tenyészállatok",{"$nulls":4},0,null,"V. Eszközök értékhelyesbítésének forrása",-1408]
[null,"     4. Beruházások, felújítások",{"$nulls":4},0,null,"VI. Mérleg szerinti eredmény"]
[null,"     5. Tárgyi eszközök értékhelyesbítése",{"$nulls":4},0,"H) Kötelezettségek",null,{"$f":"J14+J15+J16","v":0}]
[null,"III. Befektetett pénzügyi eszközök",{"$f":"C15+C16+C17","v":0},{"$f":"D15+D16+D17","v":0},0,0,0,null,"I. Költségvetési évben esedékes kötelezettségek",0]
[null,"     1. Tartós részesedések",{"$nulls":4},{"$f":"SUM(C15:F15)","v":0},null,"II. Költségvetési évet követően esedékes kötelezettségek"]
[null,"     2. Tartós hitelviszonyt megtestesítő értékpapírok",{"$nulls":4},0,null,"III. Kötelezettség jellegű sajátos elszámolások"]
[null,"     3. Befektetett pénzügyi eszközök értékhelyesbítése",{"$nulls":4},{"$f":"SUM(C17:F17)","v":0},"I) Kincstári számlavezetéssel kapcsolatos elszámolások"]
[null,"IV. Koncesszióba, vagyonkezelésbe adott eszközök",{"$nulls":4},{"$f":"SUM(C18:F18)","v":0},"J) Passzív időbeli elhatárolások",null,0]
["B) Nemzeti vagyonba tartozó forgóeszközök",null,{"$f":"C20+C21","v":0},{"$f":"D20+D21","v":0},0,0,0]
[null,"I. Készletek",{"$nulls":4},0]
[null,"II. Értékpapírok",{"$nulls":4},0]
["C) Pénzeszközök",null,{"$f":"C23+C24+C25+C26","v":0},{"$f":"D23+D24+D25+D26","v":0},0,120226,{"$f":"G23+G24+G25+G26","v":120226}]
[null,"I. Lekötött bankbetétek"]
[null,"II. Pénztárak, csekkek, betétkönyvek"]
[null,"III. Forintszámlák",null,null,null,120226,{"$f":"SUM(C25:F25)","v":120226}]
[null,"IV. Devizaszámlák"]
["D) Követelések",null,{"$f":"C28+C29+C30","v":0},{"$f":"D28+D29+D30","v":0},0,0,0]
[null,"I. Költségvetési évben esedékes követelések"]
[null,"II. Költségvetési évet követően esedékes követelések"]
[null,"III. Követelés jellegű sajátos elszámolások"]
["E) Egyéb sajátos eszközoldali elszámolások"]
["F) Aktív időbeli elhatárolások",{"$nulls":5},0]
["Eszközök összesen",null,{"$f":"C6+C19+C22+C27+C31","v":0},{"$f":"D6+D19+D22+D27+D31","v":0},{"$f":"E6+E19+E22+E27+E31","v":165000},{"$f":"F6+F19+F22+F27+F31","v":120226},{"$f":"G6+G19+G22+G27+G31","v":285226},"Források összesen",null,{"$f":"J6+J13+J17+J18","v":285226}]
["„0”-ra leírt eszközök, a használatban lévő kisértékű immateriális javak, tárgyi eszközök, készletek",{"$nulls":4},510791,510791,"Függő kötelezettségek"]
["01-02. számlacsoportban nyilvántartott eszközök",{"$nulls":5},0]
["Nvt. 1. § (2) bekezdés g) és h) pontja szerinti kulturális javak és régészeti leletek állománya",{"$nulls":5},0]
["Függő követelések",{"$nulls":5},0]
["Biztos (jövőbeni) követelések",{"$nulls":5},0]
["MÉRLEGEN KÍVÜLI ESZKÖZÖK ÖSSZESEN","MÉRLEGEN KÍVÜLI ESZKÖZÖK ÖSSZESEN",{"$f":"SUM(C34:C38)","v":0},{"$f":"SUM(D34:D38)","v":0},{"$f":"SUM(E34:E38)","v":0},{"$f":"SUM(F34:F38)","v":510791},{"$f":"SUM(G34:G38)","v":510791},"MÉRLEGEN KÍVÜLI FORRÁSOK ÖSSZESEN","MÉRLEGEN KÍVÜLI FORRÁSOK ÖSSZESEN",{"$f":"SUM(J34:J38)","v":0}]

{"sheet":"Munka2","index":1,"n_rows":0,"n_cols":0,"rows_kept":0,"cut":false,"hidden":false,"merged":[]}

{"sheet":"Munka3","index":2,"n_rows":0,"n_cols":0,"rows_kept":0,"cut":false,"hidden":false,"merged":[]}